[Event "Titled Tuesday Blitz February 21 Early 2023"]
[White "Kielinkei"]
[Black "Decoster, Frederic"]
[BlackFideId "204269"]
[WhiteElo "2378"]
[BlackElo "2301"]
[Result "0-1"]
[Round "10"]
[TimeControl "180+2"]
[Date "2023.02.21"]
[WhiteClock "0:00:02"]
[BlackClock "0:00:12"]

1. Nf3 {[%clk 0:03:00]}  Nf6 {[%clk 0:02:56]} 2. c4 {[%clk 0:02:59]}  g6 {[%clk 0:02:56]} 3. d4 {[%clk 0:02:59]}  Bg7 {[%clk 0:02:56]} 4. Nc3 {[%clk 0:02:59]}  O-O {[%clk 0:02:56]} 5. e4 {[%clk 0:02:59]}  d6 {[%clk 0:02:56]} 6. Be2 {[%clk 0:02:57]}  e5 {[%clk 0:02:56]} 7. Be3 {[%clk 0:02:55]}  Ng4 {[%clk 0:02:55]} 8. Bg5 {[%clk 0:02:54]}  f6 {[%clk 0:02:55]} 9. Bh4 {[%clk 0:02:53]}  g5 {[%clk 0:02:53]} 10. Bg3 {[%clk 0:02:53]}  Nh6 {[%clk 0:02:53]} 11. O-O {[%clk 0:02:49]}  Nc6 {[%clk 0:02:47]} 12. d5 {[%clk 0:02:36]}  Ne7 {[%clk 0:02:36]} 13. Rc1 {[%clk 0:02:29]}  c5 {[%clk 0:02:25]} 14. dxc6 {[%clk 0:02:27]}  bxc6 {[%clk 0:02:25]} 15. Qd2 {[%clk 0:02:24]}  Be6 {[%clk 0:02:15]} 16. Rfd1 {[%clk 0:02:22]}  Nf7 {[%clk 0:02:15]} 17. b3 {[%clk 0:02:16]}  Qc7 {[%clk 0:02:06]} 18. h4 {[%clk 0:02:11]}  g4 {[%clk 0:01:59]} 19. Nh2 {[%clk 0:02:12]}  h5 {[%clk 0:01:59]} 20. Nf1 {[%clk 0:02:11]}  Bh6 {[%clk 0:01:58]} 21. Ne3 {[%clk 0:02:10]}  f5 {[%clk 0:01:55]} 22. exf5 {[%clk 0:02:02]}  Nxf5 {[%clk 0:01:55]} 23. Kh2 {[%clk 0:01:28]}  Qe7 {[%clk 0:01:54]} 24. Nxf5 {[%clk 0:01:14]}  Bxf5 {[%clk 0:01:54]} 25. Qb2 {[%clk 0:01:12]}  Bf4 {[%clk 0:01:47]} 26. Kg1 {[%clk 0:01:06]}  Rad8 {[%clk 0:01:39]} 27. Bd3 {[%clk 0:01:03]}  Nh6 {[%clk 0:01:31]} 28. Ra1 {[%clk 0:00:58]}  Bxd3 {[%clk 0:01:18]} 29. Rxd3 {[%clk 0:00:57]}  Nf5 {[%clk 0:01:19]} 30. Ne4 {[%clk 0:00:52]}  Bh6 {[%clk 0:01:14]} 31. Rad1 {[%clk 0:00:42]}  Bg7 {[%clk 0:01:04]} 32. Qe2 {[%clk 0:00:30]}  Nd4 {[%clk 0:01:01]} 33. Qe3 {[%clk 0:00:26]}  Rf5 {[%clk 0:00:53]} 34. Ng5 {[%clk 0:00:24]}  Qf6 {[%clk 0:00:48]} 35. Qe4 {[%clk 0:00:19]}  Bh6 {[%clk 0:00:39]} 36. c5 {[%clk 0:00:14]}  d5 {[%clk 0:00:36]} 37. Qe1 {[%clk 0:00:14]}  Bxg5 {[%clk 0:00:28]} 38. hxg5 {[%clk 0:00:14]}  Qxg5 {[%clk 0:00:28]} 39. Rxd4 {[%clk 0:00:08]}  exd4 {[%clk 0:00:27]} 40. Qe6+ {[%clk 0:00:08]}  Kh7 {[%clk 0:00:25]} 41. Re1 {[%clk 0:00:05]}  Rdf8 {[%clk 0:00:22]} 42. Qd7+ {[%clk 0:00:05]}  R8f7 {[%clk 0:00:21]} 43. Qxc6 {[%clk 0:00:05]}  h4 {[%clk 0:00:20]} 44. Be5 {[%clk 0:00:01]}  d3 {[%clk 0:00:18]} 45. Qe8 {[%clk 0:00:02]}  Qg8 {[%clk 0:00:15]} 46. Qe7 {[%clk 0:00:01]}  Rxe7 {[%clk 0:00:15]} 47. Bf4 {[%clk 0:00:01]}  Rxe1+ {[%clk 0:00:15]} 48. Kh2 {[%clk 0:00:02]}  g3+ {[%clk 0:00:15]} 49. Kh3 {[%clk 0:00:02]}  gxf2 {[%clk 0:00:15]} 50. g4 {[%clk 0:00:02]}  hxg3 {[%clk 0:00:14]} 51. Kg2 {[%clk 0:00:01]}  Rg1+ {[%clk 0:00:13]} 52. Kh3 {[%clk 0:00:02]}  Rh5# {[%clk 0:00:12]} 0-1


[Site "https://www.chess.com"]

[Event "Titled Tuesday Blitz February 21 Early 2023"]
[White "Gerbelli Neto, Eduardo"]
[Black "Schut, Han"]
[WhiteFideId "2103281"]
[BlackFideId "1005561"]
[WhiteElo "2114"]
[BlackElo "2101"]
[Result "1-0"]
[Round "10"]
[TimeControl "180+2"]
[Date "2023.02.21"]
[WhiteClock "0:01:13"]
[BlackClock "0:00:01"]

1. e4 {[%clk 0:03:00]}  c5 {[%clk 0:02:55]} 2. Nc3 {[%clk 0:03:00]}  Nc6 {[%clk 0:02:51]} 3. f4 {[%clk 0:03:01]}  g6 {[%clk 0:02:51]} 4. Nf3 {[%clk 0:03:02]}  Bg7 {[%clk 0:02:51]} 5. Bc4 {[%clk 0:03:02]}  e6 {[%clk 0:02:52]} 6. f5 {[%clk 0:03:03]}  Nge7 {[%clk 0:02:51]} 7. fxe6 {[%clk 0:03:03]}  fxe6 {[%clk 0:02:51]} 8. d3 {[%clk 0:03:04]}  d5 {[%clk 0:02:48]} 9. Bb3 {[%clk 0:03:03]}  Nd4 {[%clk 0:02:34]} 10. O-O {[%clk 0:02:36]}  Nxb3 {[%clk 0:02:32]} 11. axb3 {[%clk 0:02:35]}  O-O {[%clk 0:02:31]} 12. Bg5 {[%clk 0:02:33]}  d4 {[%clk 0:02:24]} 13. Na4 {[%clk 0:02:30]}  b6 {[%clk 0:02:17]} 14. Bxe7 {[%clk 0:02:30]}  Qxe7 {[%clk 0:02:17]} 15. Nxb6 {[%clk 0:02:31]}  Rb8 {[%clk 0:02:07]} 16. Nc4 {[%clk 0:02:29]}  e5 {[%clk 0:02:02]} 17. h3 {[%clk 0:02:29]}  Re8 {[%clk 0:01:37]} 18. Qd2 {[%clk 0:02:28]}  Qc7 {[%clk 0:01:24]} 19. Qg5 {[%clk 0:02:23]}  Bd7 {[%clk 0:01:12]} 20. Ra5 {[%clk 0:01:51]}  Rb4 {[%clk 0:00:47]} 21. Rfa1 {[%clk 0:01:49]}  Rb7 {[%clk 0:00:42]} 22. Ra6 {[%clk 0:01:35]}  Bb5 {[%clk 0:00:39]} 23. Nd6 {[%clk 0:01:25]}  Bxa6 {[%clk 0:00:36]} 24. Nxe8 {[%clk 0:01:25]}  Qe7 {[%clk 0:00:01]} 25. Qxe7 {[%clk 0:01:18]}  Rxe7 {[%clk 0:00:02]} 26. Nxg7 {[%clk 0:01:19]}  Bb7 {[%clk 0:00:02]} 27. Ra5 {[%clk 0:01:13]}  Kxg7 {[%clk 0:00:01]} 28. Rxc5 {[%clk 0:01:13]}  a5 {[%clk 0:00:01]} 29. Nxe5 {[%clk 0:01:13]} 1-0


[Site "https://www.chess.com"]

[Event "Titled Tuesday Blitz February 21 Early 2023"]
[White "Kuchava, Ana"]
[Black "Smith, Garrett L"]
[WhiteFideId "13605348"]
[BlackFideId "2024829"]
[WhiteElo "2101"]
[BlackElo "2047"]
[Result "0-1"]
[Round "10"]
[TimeControl "180+2"]
[Date "2023.02.21"]
[WhiteClock "0:00:03"]
[BlackClock "0:00:14"]

1. d4 {[%clk 0:02:59]}  Nf6 {[%clk 0:02:59]} 2. Nf3 {[%clk 0:02:58]}  g6 {[%clk 0:02:59]} 3. c4 {[%clk 0:02:57]}  Bg7 {[%clk 0:03:00]} 4. Nc3 {[%clk 0:02:58]}  d5 {[%clk 0:03:00]} 5. Bg5 {[%clk 0:02:57]}  Ne4 {[%clk 0:02:57]} 6. Bf4 {[%clk 0:02:56]}  Nxc3 {[%clk 0:02:53]} 7. bxc3 {[%clk 0:02:55]}  dxc4 {[%clk 0:02:48]} 8. e3 {[%clk 0:02:54]}  Be6 {[%clk 0:02:42]} 9. Ne5 {[%clk 0:02:46]}  Nd7 {[%clk 0:02:34]} 10. Nxc4 {[%clk 0:02:42]}  Nb6 {[%clk 0:02:26]} 11. Na5 {[%clk 0:02:39]}  Qc8 {[%clk 0:02:23]} 12. Bd3 {[%clk 0:02:33]}  O-O {[%clk 0:02:22]} 13. O-O {[%clk 0:02:32]}  c5 {[%clk 0:02:21]} 14. Rb1 {[%clk 0:02:23]}  Nd5 {[%clk 0:01:54]} 15. Qd2 {[%clk 0:02:07]}  Nxf4 {[%clk 0:01:48]} 16. exf4 {[%clk 0:02:08]}  b6 {[%clk 0:01:42]} 17. Be4 {[%clk 0:01:52]}  bxa5 {[%clk 0:01:30]} 18. Bxa8 {[%clk 0:01:51]}  cxd4 {[%clk 0:01:21]} 19. cxd4 {[%clk 0:01:43]}  Qxa8 {[%clk 0:01:18]} 20. Qxa5 {[%clk 0:01:41]}  Bxd4 {[%clk 0:01:16]} 21. Qc7 {[%clk 0:01:34]}  Qe4 {[%clk 0:01:09]} 22. Qxe7 {[%clk 0:01:30]}  Qxf4 {[%clk 0:01:01]} 23. Qb7 {[%clk 0:01:06]}  Rd8 {[%clk 0:00:56]} 24. a3 {[%clk 0:00:51]}  Bd5 {[%clk 0:00:53]} 25. Qe7 {[%clk 0:00:43]}  Qf6 {[%clk 0:00:36]} 26. Qxf6 {[%clk 0:00:40]}  Bxf6 {[%clk 0:00:37]} 27. Rfd1 {[%clk 0:00:40]}  Rd7 {[%clk 0:00:27]} 28. h3 {[%clk 0:00:39]}  Be7 {[%clk 0:00:22]} 29. Rb8+ {[%clk 0:00:37]}  Bf8 {[%clk 0:00:22]} 30. Rb5 {[%clk 0:00:34]}  Be6 {[%clk 0:00:22]} 31. Rxd7 {[%clk 0:00:33]}  Bxd7 {[%clk 0:00:23]} 32. Ra5 {[%clk 0:00:34]}  Be6 {[%clk 0:00:22]} 33. Rxa7 {[%clk 0:00:33]}  Kg7 {[%clk 0:00:22]} 34. a4 {[%clk 0:00:29]}  Kf6 {[%clk 0:00:22]} 35. a5 {[%clk 0:00:27]}  Bc5 {[%clk 0:00:22]} 36. Rc7 {[%clk 0:00:26]}  Bd4 {[%clk 0:00:21]} 37. a6 {[%clk 0:00:26]}  Bd5 {[%clk 0:00:20]} 38. Kf1 {[%clk 0:00:12]}  Ke6 {[%clk 0:00:21]} 39. a7 {[%clk 0:00:11]}  Kd6 {[%clk 0:00:18]} 40. Rc8 {[%clk 0:00:09]}  Bxa7 {[%clk 0:00:18]} 41. Rh8 {[%clk 0:00:09]}  h5 {[%clk 0:00:18]} 42. g4 {[%clk 0:00:09]}  hxg4 {[%clk 0:00:16]} 43. hxg4 {[%clk 0:00:10]}  Ke5 {[%clk 0:00:17]} 44. Re8+ {[%clk 0:00:09]}  Be6 {[%clk 0:00:16]} 45. Kg2 {[%clk 0:00:09]}  Kf4 {[%clk 0:00:16]} 46. f3 {[%clk 0:00:08]}  Bd4 {[%clk 0:00:16]} 47. Rd8 {[%clk 0:00:07]}  Be5 {[%clk 0:00:16]} 48. Rd2 {[%clk 0:00:07]}  Bc4 {[%clk 0:00:15]} 49. Rc2 {[%clk 0:00:06]}  Bb5 {[%clk 0:00:15]} 50. Ra2 {[%clk 0:00:05]}  Bc6 {[%clk 0:00:15]} 51. Rc2 {[%clk 0:00:04]}  Bxf3+ {[%clk 0:00:14]} 52. Kf2 {[%clk 0:00:04]}  Bd4+ {[%clk 0:00:14]} 53. Kf1 {[%clk 0:00:03]}  Bxg4 {[%clk 0:00:14]} 0-1


[Site "https://www.chess.com"]

[Event "Titled Tuesday Blitz February 21 Early 2023"]
[White "lisjakzlatko1"]
[Black "mohsengabr2002"]
[WhiteElo "2162"]
[BlackElo "2324"]
[Result "0-1"]
[Round "10"]
[TimeControl "180+2"]
[Date "2023.02.21"]
[WhiteClock "0:00:01"]
[BlackClock "0:00:43"]

1. e4 {[%clk 0:03:00]}  d5 {[%clk 0:02:56]} 2. exd5 {[%clk 0:02:58]}  Nf6 {[%clk 0:02:56]} 3. d4 {[%clk 0:02:53]}  Nxd5 {[%clk 0:02:57]} 4. Nf3 {[%clk 0:02:50]}  Bf5 {[%clk 0:02:55]} 5. Bd3 {[%clk 0:02:44]}  Bxd3 {[%clk 0:02:53]} 6. Qxd3 {[%clk 0:02:43]}  e6 {[%clk 0:02:54]} 7. O-O {[%clk 0:02:42]}  c6 {[%clk 0:02:53]} 8. c4 {[%clk 0:02:41]}  Nf6 {[%clk 0:02:54]} 9. Nc3 {[%clk 0:02:36]}  Bd6 {[%clk 0:02:54]} 10. b3 {[%clk 0:02:30]}  Nbd7 {[%clk 0:02:54]} 11. Bb2 {[%clk 0:02:31]}  O-O {[%clk 0:02:54]} 12. Rfe1 {[%clk 0:02:27]}  a5 {[%clk 0:02:54]} 13. Rad1 {[%clk 0:02:22]}  Re8 {[%clk 0:02:54]} 14. Ne4 {[%clk 0:02:00]}  Nxe4 {[%clk 0:02:52]} 15. Rxe4 {[%clk 0:01:55]}  Nf6 {[%clk 0:02:53]} 16. Rh4 {[%clk 0:01:54]}  h6 {[%clk 0:02:47]} 17. Qc2 {[%clk 0:01:44]}  a4 {[%clk 0:02:40]} 18. Rd3 {[%clk 0:01:22]}  axb3 {[%clk 0:02:33]} 19. axb3 {[%clk 0:01:20]}  b5 {[%clk 0:02:17]} 20. Ne5 {[%clk 0:01:19]}  Ra6 {[%clk 0:02:04]} 21. Rg3 {[%clk 0:00:58]}  Ra2 {[%clk 0:01:33]} 22. Qc1 {[%clk 0:00:42]}  Bxe5 {[%clk 0:01:27]} 23. dxe5 {[%clk 0:00:38]}  Rxb2 {[%clk 0:01:27]} 24. Rxg7+ {[%clk 0:00:23]}  Kf8 {[%clk 0:01:08]} 25. Rxh6 {[%clk 0:00:11]}  Qd2 {[%clk 0:00:47]} 26. Qxd2 {[%clk 0:00:01]}  Rb1+ {[%clk 0:00:43]} 0-1


[Site "https://www.chess.com"]

[Event "Titled Tuesday Blitz February 21 Early 2023"]
[White "Osuna Vega, Enrique"]
[Black "Gharamian, Tigran"]
[WhiteFideId "2219549"]
[BlackFideId "13301527"]
[WhiteElo "2061"]
[BlackElo "2601"]
[Result "1-0"]
[Round "10"]
[TimeControl "180+2"]
[Date "2023.02.21"]
[WhiteClock "0:00:55"]
[BlackClock "0:00:25"]

1. e4 {[%clk 0:03:00]}  c6 {[%clk 0:02:59]} 2. Nf3 {[%clk 0:02:58]}  d5 {[%clk 0:03:00]} 3. Nc3 {[%clk 0:02:59]}  dxe4 {[%clk 0:03:00]} 4. Nxe4 {[%clk 0:03:00]}  Nf6 {[%clk 0:03:01]} 5. Ng3 {[%clk 0:03:00]}  h5 {[%clk 0:03:00]} 6. h3 {[%clk 0:03:00]}  h4 {[%clk 0:02:59]} 7. Ne2 {[%clk 0:02:59]}  c5 {[%clk 0:02:53]} 8. d4 {[%clk 0:02:57]}  Nc6 {[%clk 0:02:51]} 9. c3 {[%clk 0:02:48]}  Bf5 {[%clk 0:02:48]} 10. Be3 {[%clk 0:02:47]}  e6 {[%clk 0:02:48]} 11. dxc5 {[%clk 0:02:39]}  Qc7 {[%clk 0:02:40]} 12. Ned4 {[%clk 0:02:36]}  Be4 {[%clk 0:02:15]} 13. Bd3 {[%clk 0:02:22]}  O-O-O {[%clk 0:01:52]} 14. Bxe4 {[%clk 0:02:17]}  Nxe4 {[%clk 0:01:51]} 15. Qc2 {[%clk 0:02:15]}  Nxc5 {[%clk 0:01:46]} 16. O-O {[%clk 0:02:06]}  Ne5 {[%clk 0:01:30]} 17. Nxe5 {[%clk 0:02:01]}  Qxe5 {[%clk 0:01:30]} 18. Nf3 {[%clk 0:01:58]}  Qc7 {[%clk 0:01:15]} 19. Rfd1 {[%clk 0:01:46]}  Rxd1+ {[%clk 0:00:54]} 20. Rxd1 {[%clk 0:01:44]}  Rh5 {[%clk 0:00:51]} 21. c4 {[%clk 0:01:24]}  Qc6 {[%clk 0:00:41]} 22. b4 {[%clk 0:01:17]}  Ne4 {[%clk 0:00:32]} 23. b5 {[%clk 0:01:14]}  Rxb5 {[%clk 0:00:25]} 24. Qd3 {[%clk 0:00:55]} 1-0


[Site "https://www.chess.com"]

[Event "Titled Tuesday Blitz February 21 Early 2023"]
[White "Burke, John F"]
[Black "Buganca, Luiz Henrique Da Silva"]
[WhiteFideId "2052970"]
[BlackFideId "2182289"]
[WhiteElo "2013"]
[BlackElo "1920"]
[Result "1-0"]
[Round "10"]
[TimeControl "180+2"]
[Date "2023.02.21"]
[WhiteClock "0:00:28"]
[BlackClock "0:00:14"]

1. d4 {[%clk 0:03:00]}  Nf6 {[%clk 0:02:59]} 2. c4 {[%clk 0:02:57]}  e6 {[%clk 0:02:59]} 3. Nf3 {[%clk 0:02:56]}  b6 {[%clk 0:02:59]} 4. a3 {[%clk 0:02:55]}  Bb7 {[%clk 0:02:58]} 5. Nc3 {[%clk 0:02:55]}  Be7 {[%clk 0:02:59]} 6. Qc2 {[%clk 0:02:54]}  c5 {[%clk 0:02:58]} 7. e3 {[%clk 0:02:51]}  O-O {[%clk 0:02:58]} 8. Be2 {[%clk 0:02:51]}  d6 {[%clk 0:02:58]} 9. O-O {[%clk 0:02:51]}  Nbd7 {[%clk 0:02:58]} 10. b3 {[%clk 0:02:52]}  Rc8 {[%clk 0:02:58]} 11. Bb2 {[%clk 0:02:52]}  a6 {[%clk 0:02:58]} 12. Rfd1 {[%clk 0:02:49]}  Qc7 {[%clk 0:02:59]} 13. Rac1 {[%clk 0:02:49]}  Rfd8 {[%clk 0:02:58]} 14. d5 {[%clk 0:02:40]}  Nf8 {[%clk 0:02:52]} 15. e4 {[%clk 0:02:40]}  e5 {[%clk 0:02:50]} 16. Bd3 {[%clk 0:02:36]}  Nh5 {[%clk 0:02:50]} 17. Ne2 {[%clk 0:02:36]}  Ng6 {[%clk 0:02:49]} 18. g3 {[%clk 0:02:33]}  Qd7 {[%clk 0:02:50]} 19. Ne1 {[%clk 0:02:11]}  Rf8 {[%clk 0:02:47]} 20. f3 {[%clk 0:02:09]}  Nh8 {[%clk 0:02:36]} 21. Ng2 {[%clk 0:02:09]}  g6 {[%clk 0:02:36]} 22. Rf1 {[%clk 0:02:07]}  f6 {[%clk 0:02:32]} 23. g4 {[%clk 0:02:06]}  Ng7 {[%clk 0:02:31]} 24. Ng3 {[%clk 0:02:06]}  Nf7 {[%clk 0:02:30]} 25. h3 {[%clk 0:02:04]}  Rb8 {[%clk 0:02:29]} 26. f4 {[%clk 0:02:00]}  b5 {[%clk 0:02:23]} 27. f5 {[%clk 0:02:00]}  g5 {[%clk 0:02:23]} 28. Ra1 {[%clk 0:01:51]}  bxc4 {[%clk 0:02:23]} 29. bxc4 {[%clk 0:01:45]}  a5 {[%clk 0:02:23]} 30. Bc3 {[%clk 0:01:45]}  a4 {[%clk 0:02:21]} 31. Rab1 {[%clk 0:01:46]}  Ba6 {[%clk 0:02:21]} 32. Rxb8 {[%clk 0:01:44]}  Rxb8 {[%clk 0:02:22]} 33. Rb1 {[%clk 0:01:44]}  Rxb1+ {[%clk 0:02:09]} 34. Qxb1 {[%clk 0:01:44]}  Bd8 {[%clk 0:02:04]} 35. Ne3 {[%clk 0:01:35]}  Ne8 {[%clk 0:01:58]} 36. Bc2 {[%clk 0:01:35]}  Nc7 {[%clk 0:01:40]} 37. Qb8 {[%clk 0:01:29]}  Ne8 {[%clk 0:01:24]} 38. Nh5 {[%clk 0:01:21]}  Kf8 {[%clk 0:01:06]} 39. Qa8 {[%clk 0:01:17]}  Qb7 {[%clk 0:00:49]} 40. Qxb7 {[%clk 0:01:14]}  Bxb7 {[%clk 0:00:50]} 41. Bxa4 {[%clk 0:01:14]}  Nc7 {[%clk 0:00:47]} 42. Ba5 {[%clk 0:01:07]}  Ke7 {[%clk 0:00:42]} 43. Bc6 {[%clk 0:00:53]}  Ba6 {[%clk 0:00:38]} 44. Kf2 {[%clk 0:00:48]}  Bc8 {[%clk 0:00:22]} 45. Ng7 {[%clk 0:00:46]}  Na6 {[%clk 0:00:20]} 46. Bxd8+ {[%clk 0:00:45]}  Nxd8 {[%clk 0:00:21]} 47. Bb5 {[%clk 0:00:42]}  Nc7 {[%clk 0:00:20]} 48. Ne6 {[%clk 0:00:42]}  Nxb5 {[%clk 0:00:19]} 49. cxb5 {[%clk 0:00:42]}  Nb7 {[%clk 0:00:20]} 50. Nc4 {[%clk 0:00:39]}  Bd7 {[%clk 0:00:18]} 51. a4 {[%clk 0:00:38]}  Be8 {[%clk 0:00:18]} 52. Kg3 {[%clk 0:00:33]}  Kd7 {[%clk 0:00:18]} 53. h4 {[%clk 0:00:34]}  h6 {[%clk 0:00:17]} 54. hxg5 {[%clk 0:00:32]}  hxg5 {[%clk 0:00:18]} 55. Kf3 {[%clk 0:00:32]}  Kc8 {[%clk 0:00:18]} 56. Nb6+ {[%clk 0:00:29]}  Kb8 {[%clk 0:00:17]} 57. Nc4 {[%clk 0:00:28]}  Ka7 {[%clk 0:00:17]} 58. Ke3 {[%clk 0:00:28]}  Kb8 {[%clk 0:00:17]} 59. Kd3 {[%clk 0:00:28]}  Ka7 {[%clk 0:00:17]} 60. Kc3 {[%clk 0:00:29]}  Kb8 {[%clk 0:00:18]} 61. Kb3 {[%clk 0:00:29]}  Ka7 {[%clk 0:00:18]} 62. Nc7 {[%clk 0:00:29]}  Bd7 {[%clk 0:00:18]} 63. b6+ {[%clk 0:00:28]}  Kb8 {[%clk 0:00:19]} 64. a5 {[%clk 0:00:28]}  Bc8 {[%clk 0:00:14]} 65. a6 {[%clk 0:00:26]}  Nd8 {[%clk 0:00:14]} 66. a7+ {[%clk 0:00:27]}  Kb7 {[%clk 0:00:14]} 67. a8=Q# {[%clk 0:00:28]} 1-0


[Site "https://www.chess.com"]

[Event "Titled Tuesday Blitz February 21 Early 2023"]
[White "Rose, Felix"]
[Black "Gamage, Wanshini Vidusama"]
[WhiteFideId "5105722"]
[BlackFideId "9953752"]
[WhiteElo "2091"]
[BlackElo "1089"]
[Result "1-0"]
[Round "10"]
[TimeControl "180+2"]
[Date "2023.02.21"]
[WhiteClock "0:00:04"]
[BlackClock "0:00:01"]

1. d4 {[%clk 0:02:57]}  Nf6 {[%clk 0:02:59]} 2. Nc3 {[%clk 0:02:54]}  d5 {[%clk 0:02:59]} 3. Bf4 {[%clk 0:02:54]}  c5 {[%clk 0:02:56]} 4. e4 {[%clk 0:02:53]}  dxe4 {[%clk 0:02:32]} 5. dxc5 {[%clk 0:02:52]}  Qxd1+ {[%clk 0:02:31]} 6. Rxd1 {[%clk 0:02:52]}  Bg4 {[%clk 0:02:30]} 7. Be2 {[%clk 0:02:48]}  Bxe2 {[%clk 0:02:29]} 8. Ngxe2 {[%clk 0:02:49]}  e6 {[%clk 0:02:28]} 9. b4 {[%clk 0:02:28]}  a5 {[%clk 0:02:22]} 10. a3 {[%clk 0:02:25]}  Be7 {[%clk 0:02:10]} 11. Ng3 {[%clk 0:02:20]}  axb4 {[%clk 0:02:10]} 12. axb4 {[%clk 0:02:20]}  Nc6 {[%clk 0:02:11]} 13. b5 {[%clk 0:01:29]}  Nb4 {[%clk 0:02:11]} 14. O-O {[%clk 0:01:28]}  O-O {[%clk 0:01:52]} 15. Ngxe4 {[%clk 0:01:27]}  Nxe4 {[%clk 0:01:53]} 16. Nxe4 {[%clk 0:01:28]}  Rac8 {[%clk 0:01:43]} 17. c3 {[%clk 0:01:01]}  Nd5 {[%clk 0:01:42]} 18. Bd6 {[%clk 0:00:56]}  Bxd6 {[%clk 0:01:15]} 19. cxd6 {[%clk 0:00:36]}  Nxc3 {[%clk 0:01:15]} 20. d7 {[%clk 0:00:33]}  Ne2+ {[%clk 0:00:52]} 21. Kh1 {[%clk 0:00:32]}  Rcd8 {[%clk 0:00:51]} 22. g3 {[%clk 0:00:31]}  f5 {[%clk 0:00:47]} 23. Nc5 {[%clk 0:00:31]}  Nc3 {[%clk 0:00:43]} 24. Rd3 {[%clk 0:00:29]}  Nxb5 {[%clk 0:00:42]} 25. Nxe6 {[%clk 0:00:28]}  Kf7 {[%clk 0:00:35]} 26. Nxf8 {[%clk 0:00:16]}  Kxf8 {[%clk 0:00:35]} 27. Rb1 {[%clk 0:00:17]}  Nc7 {[%clk 0:00:30]} 28. Rxb7 {[%clk 0:00:16]}  Ne6 {[%clk 0:00:30]} 29. f4 {[%clk 0:00:14]}  Ke7 {[%clk 0:00:29]} 30. Rd5 {[%clk 0:00:12]}  g6 {[%clk 0:00:28]} 31. Kg2 {[%clk 0:00:13]}  h5 {[%clk 0:00:24]} 32. Kf3 {[%clk 0:00:12]}  h4 {[%clk 0:00:17]} 33. gxh4 {[%clk 0:00:11]}  Nf8 {[%clk 0:00:16]} 34. h5 {[%clk 0:00:09]}  gxh5 {[%clk 0:00:16]} 35. Rxf5 {[%clk 0:00:09]}  Nxd7 {[%clk 0:00:16]} 36. Rxh5 {[%clk 0:00:09]}  Ke6 {[%clk 0:00:09]} 37. Rh6+ {[%clk 0:00:09]}  Kd5 {[%clk 0:00:06]} 38. Rb5+ {[%clk 0:00:05]}  Kc4 {[%clk 0:00:06]} 39. Rf5 {[%clk 0:00:03]}  Re8 {[%clk 0:00:05]} 40. Rc6+ {[%clk 0:00:03]}  Kb4 {[%clk 0:00:05]} 41. Rc7 {[%clk 0:00:02]}  Nb6 {[%clk 0:00:02]} 42. Rf6 {[%clk 0:00:02]}  Nd5 {[%clk 0:00:01]} 43. Rb7+ {[%clk 0:00:03]}  Kc4 {[%clk 0:00:02]} 44. Rc6+ {[%clk 0:00:03]}  Kd4 {[%clk 0:00:01]} 45. Rd7 {[%clk 0:00:03]}  Re3+ {[%clk 0:00:01]} 46. Kf2 {[%clk 0:00:04]} 1-0


[Site "https://www.chess.com"]

[Event "Titled Tuesday Blitz February 21 Early 2023"]
[White "Levitan, Caleb Levi"]
[Black "Kiseljova, Marya"]
[WhiteFideId "14332620"]
[BlackFideId "4155009"]
[WhiteElo "2129"]
[BlackElo "2031"]
[Result "0-1"]
[Round "10"]
[TimeControl "180+2"]
[Date "2023.02.21"]
[WhiteClock "0:00:33"]
[BlackClock "0:02:04"]

1. e4 {[%clk 0:03:00]}  c5 {[%clk 0:02:59]} 2. Nf3 {[%clk 0:03:00]}  Nc6 {[%clk 0:02:59]} 3. Nc3 {[%clk 0:02:59]}  g6 {[%clk 0:02:59]} 4. d4 {[%clk 0:02:53]}  cxd4 {[%clk 0:02:58]} 5. Nxd4 {[%clk 0:02:53]}  Bg7 {[%clk 0:02:58]} 6. Be3 {[%clk 0:02:53]}  Nf6 {[%clk 0:02:55]} 7. Bc4 {[%clk 0:02:50]}  O-O {[%clk 0:02:53]} 8. Bb3 {[%clk 0:02:49]}  Re8 {[%clk 0:02:53]} 9. Qd2 {[%clk 0:02:40]}  Ng4 {[%clk 0:02:42]} 10. Nxc6 {[%clk 0:02:16]}  bxc6 {[%clk 0:02:39]} 11. O-O-O {[%clk 0:02:05]}  Nxe3 {[%clk 0:02:38]} 12. Qxe3 {[%clk 0:02:05]}  d6 {[%clk 0:02:34]} 13. f4 {[%clk 0:02:02]}  Be6 {[%clk 0:02:28]} 14. Bxe6 {[%clk 0:01:54]}  fxe6 {[%clk 0:02:29]} 15. h4 {[%clk 0:01:54]}  Qb6 {[%clk 0:02:26]} 16. Qxb6 {[%clk 0:01:25]}  axb6 {[%clk 0:02:27]} 17. Kb1 {[%clk 0:01:21]}  Bxc3 {[%clk 0:02:23]} 18. bxc3 {[%clk 0:01:21]}  Ra4 {[%clk 0:02:23]} 19. Rd4 {[%clk 0:01:17]}  Rea8 {[%clk 0:02:21]} 20. Rxa4 {[%clk 0:01:16]}  Rxa4 {[%clk 0:02:21]} 21. Re1 {[%clk 0:01:17]}  h5 {[%clk 0:02:19]} 22. Kb2 {[%clk 0:01:16]}  Kf7 {[%clk 0:02:19]} 23. Kb3 {[%clk 0:01:14]}  b5 {[%clk 0:02:19]} 24. g3 {[%clk 0:01:12]}  Kf6 {[%clk 0:02:19]} 25. e5+ {[%clk 0:01:09]}  Kf5 {[%clk 0:02:16]} 26. exd6 {[%clk 0:01:07]}  exd6 {[%clk 0:02:17]} 27. Rd1 {[%clk 0:01:04]}  d5 {[%clk 0:02:11]} 28. Re1 {[%clk 0:01:04]}  Re4 {[%clk 0:02:03]} 29. Rxe4 {[%clk 0:00:54]}  dxe4 {[%clk 0:02:02]} 30. c4 {[%clk 0:00:49]}  Kg4 {[%clk 0:02:02]} 31. cxb5 {[%clk 0:00:46]}  cxb5 {[%clk 0:02:02]} 32. c4 {[%clk 0:00:35]}  bxc4+ {[%clk 0:01:59]} 33. Kxc4 {[%clk 0:00:36]}  e3 {[%clk 0:01:59]} 34. Kd3 {[%clk 0:00:35]}  Kf3 {[%clk 0:01:59]} 35. a4 {[%clk 0:00:34]}  e2 {[%clk 0:02:00]} 36. a5 {[%clk 0:00:35]}  e1=Q {[%clk 0:01:58]} 37. a6 {[%clk 0:00:35]}  Qa5 {[%clk 0:01:57]} 38. Kd4 {[%clk 0:00:35]}  Qxa6 {[%clk 0:01:57]} 39. Ke5 {[%clk 0:00:36]}  Qe2+ {[%clk 0:01:56]} 40. Kf6 {[%clk 0:00:35]}  Kxg3 {[%clk 0:01:56]} 41. Kg5 {[%clk 0:00:36]}  Qg4+ {[%clk 0:01:55]} 42. Kh6 {[%clk 0:00:36]}  Qxf4+ {[%clk 0:01:55]} 43. Kh7 {[%clk 0:00:36]}  Qxh4 {[%clk 0:01:55]} 44. Kh8 {[%clk 0:00:36]}  Qf4 {[%clk 0:01:55]} 45. Kh7 {[%clk 0:00:36]}  e5 {[%clk 0:01:56]} 46. Kg7 {[%clk 0:00:35]}  e4 {[%clk 0:01:57]} 47. Kh8 {[%clk 0:00:35]}  e3 {[%clk 0:01:58]} 48. Kh7 {[%clk 0:00:36]}  e2 {[%clk 0:01:58]} 49. Kg7 {[%clk 0:00:35]}  e1=Q {[%clk 0:01:59]} 50. Kh7 {[%clk 0:00:36]}  g5 {[%clk 0:02:00]} 51. Kg7 {[%clk 0:00:35]}  g4 {[%clk 0:02:01]} 52. Kh7 {[%clk 0:00:35]}  h4 {[%clk 0:02:02]} 53. Kg7 {[%clk 0:00:35]}  h3 {[%clk 0:02:03]} 54. Kg6 {[%clk 0:00:35]}  h2 {[%clk 0:02:04]} 55. Kg7 {[%clk 0:00:35]}  Qee5+ {[%clk 0:02:04]} 56. Kg6 {[%clk 0:00:34]}  Qff6+ {[%clk 0:02:04]} 57. Kh7 {[%clk 0:00:33]}  Qg7# {[%clk 0:02:04]} 0-1


[Site "https://www.chess.com"]